bitfinex/quotes_SOLUSD_20260308
["timestamp","ask_amount","ask_price","bid_price","bid_amount"]
[1772997601492,0.28432314,82.198,82.122,0.48966223]
[1772997601493,0.47559787,82.167,82.122,0.48966223]
[1772997601702,0.47559787,82.167,82.123,0.48966223]
[1772997603808,0.47507063,82.165,82.126,0.47070043]
[1772997604183,0.47507063,82.165,82.124,42.61847937]
[1772997604814,0.47507063,82.165,82.126,0.47070043]
[1772997606396,0.46673291,82.163,82.127,12.65841013]
[1772997606913,0.46673291,82.163,82.128,0.48214654]
[1772997608691,0.46673291,82.161,82.129,12.17596707]
[1772997608893,0.46673291,82.161,82.13,0.48214654]
[1772997610116,0.46673291,82.161,82.129,12.17596707]
[1772997611594,0.46673291,82.159,82.126,30.44093482]
[1772997612397,0.46673291,82.159,82.123,12.17685666]
[1772997612610,0.46673291,82.159,82.124,0.48214654]
[1772997613395,0.46673291,82.165,82.124,0.48214654]
[1772997613594,0.46673291,82.163,82.126,0.48214654]
[1772997615013,0.46673291,82.161,82.128,0.48214654]
[1772997617314,0.46673291,82.161,82.13,0.48214654]
[1772997618015,0.46673291,82.159,82.129,12.17596707]
[1772997618609,0.46673291,82.159,82.13,0.48214654]
[1772997619294,0.46673291,82.159,82.132,0.48214654]
[1772997620413,12.17104685,82.163,82.132,0.48214654]
[1772997620715,0.46673291,82.162,82.132,0.48214654]
[1772997621613,0.46673291,82.16,82.133,12.17537408]
[1772997621816,0.46673291,82.16,82.134,0.48214654]
[1772997622912,0.46673291,82.178,82.134,0.48214654]
[1772997623218,0.46673291,82.169,82.133,12.17537408]
[1772997623721,0.46673291,82.159,82.126,12.17641185]
[1772997623902,0.46673291,82.159,82.12,12.1771926]
[1772997625208,0.46673291,82.159,82.118,12.17759809]
[1772997625909,0.46673291,82.149,82.117,54.68]
[1772997626314,0.46673291,82.149,82.117,66.85765528]
[1772997627102,0.46673291,82.149,82.117,54.68]
[1772997627301,0.46673291,82.149,82.111,0.48214654]
[1772997627302,0.46673291,82.149,82.112,12.17848791]
[1772997628619,0.28432314,82.178,82.112,12.17848791]
[1772997628620,0.46673291,82.154,82.112,0.48214654]
[1772997630615,12.17241001,82.153,82.113,42.62418861]
[1772997630816,12.17241001,82.153,82.114,0.48214654]
[1772997631218,0.46673291,82.178,82.115,0.48214654]
[1772997632321,0.46673291,82.177,82.117,0.48214654]
[1772997633127,0.48762993,82.169,82.117,0.48214654]
[1772997634813,0.48762993,82.167,82.119,0.49873849]
[1772997635212,0.48762993,82.159,82.119,0.49873849]
[1772997635834,0.48762993,82.176,82.12,0.49873849]
[1772997636624,12.16827732,82.181,82.12,0.49873849]
[1772997636827,0.48762993,82.225,82.142,0.49873849]
[1772997637020,0.48762993,82.225,82.146,3.69383402]
[1772997637222,0.48762993,82.225,82.148,0.49873849]
[1772997637928,0.48762993,82.209,82.148,0.49873849]
[1772997640323,0.48762993,82.207,82.151,0.49873849]
[1772997640733,12.16115968,82.229,82.157,0.49873849]
[1772997641431,12.64878961,82.229,82.16,0.49873849]
[1772997641618,12.64878961,82.229,82.165,0.49873849]
[1772997641819,12.64878961,82.229,82.166,0.49873849]
[1772997642435,0.48762993,82.228,82.166,0.49873849]
[1772997643014,0.48762993,82.228,82.172,0.49873849]
[1772997644319,0.48762993,82.228,82.175,0.49873849]
[1772997644620,0.48762993,82.226,82.175,0.49873849]
[1772997646450,0.48762993,82.224,82.178,0.49873849]
[1772997648622,0.48762993,82.222,82.18,0.49873849]
[1772997651131,0.48762993,82.22,82.182,0.49873849]
[1772997653042,0.48762993,82.22,82.181,12.16826273]
[1772997653232,0.48762993,82.217,82.176,0.49873849]
[1772997655322,0.48762993,82.215,82.178,0.49873849]
[1772997657445,0.48762993,82.215,82.18,0.49873849]
[1772997658943,0.48762993,82.215,82.182,0.49873849]
[1772997661028,0.48762993,82.215,82.184,0.49873849]
[1772997661526,0.48762993,82.214,82.184,0.49873849]
[1772997661722,0.48762993,82.209,82.159,0.49873849]
[1772997661927,0.48762993,82.209,82.162,0.49873849]
[1772997663446,0.45931229,82.207,82.164,0.47271681]
[1772997666047,0.45931229,82.207,82.166,0.48206021]
[1772997666452,0.48783793,82.205,82.166,0.48206021]
[1772997669449,0.48783793,82.203,82.168,0.48206021]
[1772997670448,0.48783793,82.209,82.168,0.48206021]
[1772997670629,4.54509757,82.28,82.168,0.48206021]
[1772997670630,0.48783793,82.225,82.171,0.48206021]
[1772997670830,0.48783793,82.225,82.172,0.48206021]
[1772997671451,0.48783793,82.225,82.175,0.48206021]
[1772997672030,30.39574837,82.249,82.175,0.48206021]
[1772997672031,0.48783793,82.248,82.175,0.48206021]
[1772997672245,0.48783793,82.247,82.175,0.48206021]
[1772997673735,0.48783793,82.239,82.178,0.48206021]
[1772997674862,0.48783793,82.239,82.179,3.69383402]
[1772997675154,0.48783793,82.239,82.181,0.48206021]
[1772997676057,0.48783793,82.238,82.183,0.62422178]
[1772997676353,0.48783793,82.238,82.184,0.48206021]
[1772997677934,0.48783793,82.238,82.185,1.50109018]
[1772997678133,0.48783793,82.238,82.19,0.48206021]
[1772997678529,12.64672192,82.245,82.19,0.48206021]
[1772997678750,0.48783793,82.244,82.19,0.48206021]
[1772997679149,0.48783793,82.244,82.193,0.48206021]
[1772997680133,0.48783793,82.244,82.196,0.48206021]
[1772997680538,0.48783793,82.242,82.196,0.48206021]
[1772997682362,0.48783793,82.24,82.198,0.48206021]
[1772997684450,0.48783793,82.238,82.198,0.48206021]
[1772997686358,0.48783793,82.277,82.198,0.48206021]
[1772997686585,0.48783793,82.258,82.201,0.48206021]
[1772997686750,0.48783793,82.258,82.204,0.48206021]
[1772997687858,0.48783793,82.256,82.207,0.48206021]
[1772997691158,0.48783793,82.249,82.208,12.16426625]
[1772997691764,0.48783793,82.249,82.208,12.64632646]
[1772997692162,0.48783793,82.249,82.204,0.48206021]
[1772997692362,0.48783793,82.229,82.178,0.48206021]
[1772997692567,0.48783793,82.219,82.178,0.48206021]
[1772997693146,0.48783793,82.219,82.18,0.45989941]
[1772997693778,0.45712299,82.217,82.18,0.45989941]
[1772997695472,0.45712299,82.229,82.186,0.45989941]
[1772997697472,0.45712299,82.229,82.192,0.45989941]
[1772997699759,0.45712299,82.229,82.195,0.45989941]
[1772997700970,0.45712299,82.239,82.195,0.45989941]
[1772997702172,0.45712299,82.238,82.198,0.45989941]
[1772997702763,0.45712299,82.237,82.198,0.45989941]
[1772997706178,0.45712299,82.235,82.198,42.58011143]
[1772997706373,0.45712299,82.235,82.198,43.04001084]
[1772997706773,0.45712299,82.235,82.199,0.45989941]
[1772997708281,0.45712299,82.235,82.201,0.45989941]
[1772997708484,0.45712299,82.265,82.202,0.45989941]
[1772997708785,0.45712299,82.26,82.204,0.45989941]
[1772997709889,0.45712299,82.259,82.204,0.45989941]
[1772997711790,4.54509757,82.26,82.207,0.45989941]
[1772997711791,0.45712299,82.257,82.207,0.45989941]
[1772997712578,0.45712299,82.249,82.205,42.5764856]
[1772997713664,42.54905296,82.258,82.174,0.45989941]
[1772997713665,0.45712299,82.229,82.174,0.45989941]
[1772997714586,0.45712299,82.219,82.175,0.45989941]
[1772997714968,0.45712299,82.209,82.174,42.59254751]
[1772997715877,0.45712299,82.207,82.174,30.88314763]
[1772997717400,0.45712299,82.207,82.175,0.45989941]
[1772997718080,0.45712299,82.207,82.176,12.16900311]
[1772997718482,0.45712299,82.205,82.176,12.16900311]
[1772997718677,0.45712299,82.229,82.178,0.45989941]
[1772997718877,0.45712299,82.219,82.178,0.45989941]
[1772997719098,0.45712299,82.219,82.176,42.59151089]
[1772997719775,0.45712299,82.217,82.176,0.45989941]
[1772997722193,0.45712299,82.215,82.178,0.45989941]
[1772997724183,0.45712299,82.215,82.18,0.45235504]
[1772997724500,4.54665628,82.28,82.18,0.45235504]
[1772997724501,0.45598241,82.231,82.181,0.45235504]
[1772997725601,0.45598241,82.231,82.184,0.49054461]
[1772997726424,0.47513637,82.248,82.186,0.28432314]
[1772997726702,0.47513637,82.248,82.191,0.49054461]
[1772997726885,0.47513637,82.248,82.192,0.49054461]
[1772997727600,0.47513637,82.267,82.193,4.82477569]
[1772997727807,0.47513637,82.285,82.207,0.63270618]
[1772997728103,0.47513637,82.285,82.208,0.49054461]
[1772997728296,0.47513637,82.285,82.198,3.97815716]
[1772997728297,0.47513637,82.285,82.211,0.49054461]
[1772997728501,0.47513637,82.285,82.212,0.49054461]
[1772997729208,0.47513637,82.285,82.217,0.77486775]
[1772997729399,0.47513637,82.285,82.218,0.49054461]
[1772997729597,0.47513637,82.285,82.23,0.49054461]
[1772997731709,0.47513637,82.285,82.233,0.49054461]
[1772997731908,4.64665628,82.3,82.233,0.49054461]
[1772997731909,0.47513637,82.283,82.233,0.49054461]
[1772997732085,0.47513637,82.279,82.231,42.56302366]
[1772997732287,0.47513637,82.279,82.231,43.05356827]
[1772997732506,0.47513637,82.279,82.232,0.49054461]
[1772997733705,0.1,82.3,82.231,42.56302366]
[1772997733706,0.47513637,82.269,82.231,12.1608639]
[1772997735920,12.15539456,82.268,82.232,0.49054461]
[1772997736091,0.47513637,82.289,82.232,0.49054461]
[1772997736781,42.52888925,82.297,82.232,0.49054461]
[1772997736782,0.47513637,82.279,82.232,0.49054461]
[1772997737589,0.47513637,82.269,82.224,0.49054461]
[1772997737784,0.47513637,82.269,82.126,48.70522307]
[1772997737785,12.15111121,82.297,82.225,0.49054461]
[1772997738007,12.15111121,82.297,82.23,0.49054461]
[1772997738305,42.52888925,82.297,82.231,0.49054461]
[1772997738507,4.54665628,82.29,82.231,0.49054461]
[1772997739812,0.47513637,82.289,82.231,0.49054461]
[1772997740911,0.47513637,82.279,82.233,0.49054461]
[1772997743317,0.47513637,82.277,82.235,0.49054461]
[1772997746208,0.47513637,82.288,82.238,0.49054461]
[1772997746414,0.47513637,82.286,82.238,0.49054461]
[1772997748216,30.3777692,82.298,82.24,0.49054461]
[1772997748217,0.47513637,82.284,82.24,0.49054461]
[1772997749206,0.47513637,82.279,82.24,0.49054461]
[1772997750704,0.47513637,82.279,82.242,0.49054461]
[1772997750905,0.47513637,82.277,82.242,0.49054461]
[1772997751422,0.47513637,82.269,82.226,12.65214799]
[1772997751602,0.47513637,82.269,82.227,0.49054461]
[1772997752822,0.46129885,82.267,82.229,0.49211216]
[1772997755128,0.46129885,82.265,82.231,0.49211216]
[1772997757111,0.46129885,82.263,82.232,12.65282818]
[1772997757311,0.46129885,82.263,82.233,0.49211216]
[1772997758920,0.46129885,82.261,82.235,0.49211216]
[1772997761726,0.46129885,82.261,82.236,12.16012451]
[1772997762029,0.46129885,82.261,82.236,12.65223667]
[1772997762329,0.46129885,82.261,82.237,0.49211216]
[1772997762930,0.46129885,82.261,82.239,0.49211216]
[1772997763124,12.1561948,82.263,82.239,0.49211216]
[1772997763726,0.46129885,82.263,82.24,0.49211216]
[1772997764030,0.46129885,82.263,82.232,0.49211216]
[1772997766330,0.46129885,82.261,82.234,0.49211216]
[1772997767313,0.46129885,82.259,82.236,0.49211216]
[1772997768233,0.46129885,82.259,82.232,0.49211216]
[1772997770017,0.46129885,82.257,82.216,0.49211216]
[1772997770334,0.46129885,82.249,82.186,0.49211216]
[1772997770832,0.46129885,82.239,82.186,0.49211216]
[1772997771923,0.46129885,82.237,82.188,0.49211216]
[1772997773536,0.46129885,82.244,82.189,0.49211216]
[1772997774436,0.46129885,82.244,82.192,0.49211216]
[1772997775730,12.62030121,82.244,82.192,0.49211216]
[1772997775931,0.46129885,82.243,82.192,0.49211216]
[1772997777037,0.46129885,82.239,82.195,0.49211216]
[1772997777915,12.61994067,82.247,82.195,0.49211216]
[1772997778121,12.15864182,82.247,82.195,0.49211216]
[1772997779037,0.46129885,82.246,82.195,0.49211216]
[1772997779936,0.46129885,82.25,82.198,0.49211216]
[1772997780237,0.46129885,82.255,82.198,0.49211216]
[1772997781838,0.46129885,82.255,82.201,0.49211216]
[1772997782341,0.46129885,82.261,82.204,0.49211216]
[1772997782727,0.46129885,82.267,82.207,0.46599868]
[1772997783127,0.49854698,82.273,82.21,0.46599868]
[1772997785448,0.45265897,82.269,82.213,0.48487002]
[1772997787447,0.45265897,82.267,82.216,0.48487002]
[1772997789641,4.54374491,82.28,82.218,0.48487002]
[1772997789642,0.45265897,82.265,82.218,0.48487002]
[1772997791669,0.45265897,82.265,82.22,0.48487002]
[1772997791955,0.45265897,82.265,82.219,42.56923581]
[1772997791956,0.45265897,82.263,82.221,0.48487002]
[1772997796245,0.45265897,82.261,82.223,0.48487002]
[1772997799181,0.45265897,82.259,82.225,0.48487002]
[1772997799659,0.45265897,82.279,82.226,0.48487002]
[1772997800462,0.45265897,82.269,82.226,0.48487002]
[1772997800863,0.45265897,82.284,82.226,0.48487002]
[1772997801361,0.45265897,82.284,82.228,0.48487002]
[1772997801563,0.45265897,82.284,82.231,0.48487002]
[1772997801868,0.45265897,82.282,82.231,0.48487002]
[1772997803048,0.45265897,82.279,82.231,0.48487002]
[1772997803243,0.45265897,82.291,82.234,0.48487002]
[1772997808164,0.45265897,82.279,82.236,0.48487002]
[1772997809967,0.45265897,82.277,82.227,0.48487002]
[1772997810264,0.45265897,82.269,82.227,0.48487002]
[1772997810781,0.45265897,82.334,82.231,4.82477569]
[1772997810949,37.21069167,82.408,82.231,4.82477569]
[1772997810950,0.45265897,82.349,82.241,3.69383402]
[1772997811275,0.45265897,82.349,82.238,4.82477569]
[1772997811276,0.45265897,82.365,82.264,3.69383402]
[1772997811445,0.45265897,82.365,82.287,0.48487002]
[1772997811651,0.45265897,82.365,82.296,0.48487002]
[1772997811849,0.45265897,82.412,82.299,3.69383402]
[1772997812067,0.45265897,82.399,82.322,0.48487002]
[1772997812268,0.45265897,82.399,82.333,0.48487002]
[1772997812449,0.45265897,82.389,82.333,0.48487002]
[1772997812870,0.4989908,82.419,82.343,0.46850901]
[1772997813069,0.4989908,82.458,82.354,0.46850901]
[1772997813274,0.4989908,82.449,82.364,0.46850901]
[1772997813461,0.4989908,82.435,82.364,0.46850901]
[1772997813662,0.4989908,82.42,82.364,0.46850901]
[1772997813882,20.88160641,82.491,82.366,0.61067058]
[1772997814052,0.4989908,82.468,82.373,3.69383402]
[1772997814373,0.4989908,82.468,82.404,0.46850901]
[1772997814553,0.4989908,82.468,82.407,0.46850901]
[1772997814753,0.4989908,82.459,82.407,0.46850901]
[1772997814972,0.4989908,82.449,82.407,0.46850901]
[1772997815173,0.4989908,82.439,82.397,0.46850901]
[1772997815378,0.4989908,82.468,82.397,0.46850901]
[1772997815671,0.4989908,82.468,82.379,0.14216157]
[1772997815672,12.11417846,82.51,82.416,0.46850901]
[1772997815872,0.4989908,82.509,82.435,0.46850901]
[1772997816079,0.4989908,82.489,82.44,0.46850901]
[1772997816257,0.4989908,82.479,82.426,0.46850901]
[1772997816574,48.45510603,82.551,82.426,0.46850901]
[1772997816575,0.4989908,82.499,82.427,0.46850901]
[1772997816750,0.4989908,82.489,82.427,0.46850901]
[1772997817376,0.4989908,82.489,82.43,0.46850901]
[1772997817548,12.11847844,82.519,82.43,0.46850901]
[1772997817549,0.4989908,82.479,82.43,0.46850901]
[1772997817755,0.4989908,82.469,82.414,0.46850901]
[1772997817956,0.4989908,82.439,82.398,12.13620096]
[1772997818357,12.11417846,82.42,82.369,0.46850901]
[1772997818573,0.4989908,82.419,82.369,0.46850901]
[1772997818871,0.4989908,82.409,82.369,0.46850901]
[1772997819078,0.4989908,82.409,82.37,0.46850901]
[1772997820179,0.4989908,82.409,82.307,48.59834832]
[1772997820180,0.4989908,82.399,82.36,0.46850901]
[1772997820569,0.4989908,82.389,82.35,0.46850901]
[1772997820757,0.4989908,82.389,82.322,0.46850901]
[1772997821079,0.4989908,82.379,82.322,0.46850901]
[1772997821653,0.4989908,82.407,82.326,3.69383402]
[1772997821868,0.4989908,82.407,82.318,3.69383402]
[1772997821869,0.4989908,82.407,82.337,0.46850901]
[1772997822177,0.4989908,82.407,82.34,0.46850901]
[1772997823259,0.4989908,82.419,82.346,0.46850901]
[1772997824270,0.4989908,82.409,82.351,0.46850901]
[1772997824576,0.4989908,82.409,82.352,0.46850901]
[1772997826359,0.4989908,82.409,82.355,0.46850901]
[1772997826579,0.4989908,82.399,82.355,0.46850901]
[1772997826775,12.13474419,82.408,82.354,0.28432314]
[1772997826776,0.4989908,82.389,82.354,0.28432314]
[1772997827465,0.4989908,82.399,82.355,0.46850901]
[1772997829086,0.4989908,82.389,82.344,0.46850901]
[1772997829882,0.4989908,82.369,82.332,0.46850901]
[1772997830073,0.4989908,82.397,82.332,0.46850901]
[1772997830279,2.47215037,101.56,82.223,12.13621689]
[1772997830280,0.4989908,82.406,82.335,0.46850901]
[1772997830587,0.4989908,82.406,82.338,0.46850901]
[1772997830963,12.13518597,82.405,82.341,0.46850901]
[1772997831184,0.4989908,82.404,82.341,0.46850901]
[1772997831598,12.13518597,82.405,82.341,0.46850901]
[1772997831599,0.4989908,82.399,82.341,0.46850901]
[1772997833086,0.4989908,82.397,82.344,0.46850901]
[1772997834981,0.4989908,82.395,82.344,0.46850901]
[1772997835491,0.4989908,82.389,82.336,0.46850901]
[1772997836496,0.4989908,82.387,82.338,0.46850901]
[1772997837094,0.4989908,82.379,82.338,0.46850901]
[1772997838194,0.4989908,82.379,82.337,12.1452081]
[1772997838400,12.63668075,82.388,82.324,0.46850901]
[1772997838582,0.4989908,82.387,82.327,0.46850901]
[1772997840075,0.4989908,82.387,82.326,0.28432314]
[1772997840076,12.13687074,82.394,82.33,0.46850901]
[1772997840282,0.4989908,82.393,82.33,0.46850901]
[1772997840687,42.47888593,82.394,82.333,0.46850901]
[1772997840688,0.4989908,82.391,82.333,0.46850901]
[1772997840883,0.4989908,82.426,82.337,4.82477569]
[1772997841084,0.4989908,82.426,82.342,3.69383402]
[1772997841307,0.4989908,82.426,82.357,0.46850901]
[1772997841609,12.63000785,82.434,82.366,0.46850901]
[1772997841782,12.12538539,82.43,82.366,0.46850901]
[1772997841987,0.4989908,82.429,82.366,0.46850901]
[1772997842185,0.4989908,82.419,82.366,0.46850901]
[1772997842995,0.4989908,82.419,82.368,0.46307165]
[1772997843294,0.49308932,82.417,82.368,0.46307165]
[1772997845788,60.64859956,82.443,82.369,12.14048974]
[1772997845789,0.46734715,82.409,82.369,12.14048974]
[1772997846207,12.13356629,82.416,82.371,0.49741971]
[1772997846502,0.46734715,82.415,82.371,0.49741971]
[1772997847583,0.46734715,82.441,82.371,0.49741971]
[1772997847810,0.46734715,82.441,82.377,0.49741971]
[1772997848202,12.59738111,82.44,82.377,0.49741971]
[1772997848392,0.46734715,82.439,82.377,0.49741971]
[1772997848584,0.46734715,82.419,82.373,0.49741971]
[1772997849794,0.46734715,82.417,82.375,0.49741971]
[1772997850031,0.46734715,82.417,82.365,0.49741971]
[1772997850308,0.46734715,82.409,82.356,0.49741971]
[1772997852108,42.46645149,82.418,82.358,0.49741971]
[1772997852109,12.13410535,82.413,82.358,0.49741971]
[1772997852313,0.46734715,82.416,82.362,0.49741971]
[1772997852504,12.13371352,82.415,82.362,0.49741971]
[1772997852691,0.46734715,82.416,82.362,0.49741971]
[1772997853004,12.60100255,82.416,82.362,0.49741971]
[1772997853207,0.46734715,82.415,82.362,0.49741971]
[1772997853793,0.46734715,82.415,82.365,0.49741971]
[1772997855109,0.46734715,82.413,82.365,0.49741971]
[1772997856092,0.46734715,82.411,82.368,0.49741971]
[1772997858106,0.46734715,82.409,82.37,0.49741971]
[1772997858307,0.46734715,82.409,82.369,12.14048974]
[1772997859020,0.46734715,82.409,82.37,0.49741971]
[1772997859803,42.47057395,82.41,82.37,0.49741971]
[1772997860011,0.46734715,82.429,82.374,0.49741971]
[1772997860616,0.46734715,82.419,82.374,0.49741971]
[1772997861614,0.46734715,82.409,82.367,12.14065619]
[1772997862000,0.46734715,82.409,82.367,12.6380759]
[1772997862201,0.46734715,82.407,82.359,0.49741971]
[1772997862733,0.46734715,82.399,82.35,0.49741971]
[1772997862897,0.46734715,82.379,82.343,12.14420522]
[1772997863102,0.46734715,82.379,82.344,0.49741971]
[1772997863318,0.46734715,82.379,82.343,12.14420522]
[1772997863923,0.46734715,82.377,82.339,0.49741971]
[1772997865524,0.46734715,82.369,82.316,0.49741971]
[1772997865820,42.48707178,82.378,82.316,0.49741971]
[1772997865821,0.46734715,82.359,82.316,0.49741971]
[1772997866005,0.46734715,82.357,82.318,0.49741971]
[1772997866206,12.10945842,82.358,82.318,0.49741971]
[1772997867122,11.60945842,82.358,82.318,0.49741971]
[1772997867309,12.12538539,82.35,82.318,0.49741971]
[1772997867812,41.96473659,82.358,82.318,0.49741971]
[1772997868210,165.6,82.406,82.32,0.49741971]
[1772997868211,0.44821203,82.363,82.32,0.49741971]
[1772997868410,12.58971116,82.363,82.32,0.49741971]
[1772997868607,12.12538539,82.42,82.326,0.49741971]
[1772997868803,0.44821203,82.419,82.336,5.3221954]
[1772997869107,0.44821203,82.419,82.327,4.90850235]
[1772997869108,0.44821203,82.419,82.345,0.49741971]
[1772997869308,0.44821203,82.409,82.345,0.49741971]
[1772997870213,0.44821203,82.399,82.347,0.49741971]
[1772997870410,0.44821203,82.389,82.347,0.49741971]
[1772997870928,0.44821203,82.389,82.345,12.14397206]
[1772997871432,12.12538539,82.38,82.345,12.14397206]
[1772997871625,0.44821203,82.379,82.34,12.14465021]
[1772997872406,0.44821203,82.377,82.332,0.49741971]
[1772997873710,0.44821203,82.369,82.332,0.49741971]
[1772997874433,0.44821203,82.377,82.334,0.47337698]
[1772997876513,0.44821203,82.375,82.336,0.47337698]
[1772997877710,0.44821203,82.369,82.327,0.47337698]
[1772997879121,0.44821203,82.367,82.329,0.47337698]
[1772997882634,0.44821203,82.365,82.323,0.47337698]
[1772997883013,42.49326177,82.366,82.313,12.14874928]
[1772997883014,0.44821203,82.349,82.314,0.47337698]
[1772997884815,12.14358575,82.348,82.316,0.47337698]
[1772997885016,0.44821203,82.347,82.316,0.47337698]
[1772997886135,0.44821203,82.345,82.314,0.47337698]
[1772997886342,12.14388069,82.346,82.314,0.47337698]
[1772997887940,12.14328255,82.351,82.314,0.47337698]
[1772997888140,0.44821203,82.35,82.314,0.47337698]
[1772997888932,12.14343829,82.349,82.316,0.47337698]
[1772997889267,0.44821203,82.348,82.316,0.47337698]
[1772997891242,12.14373322,82.347,82.318,0.47337698]
[1772997891632,12.59194525,82.347,82.318,0.47337698]
[1772997892127,12.14373322,82.347,82.318,0.47337698]
[1772997892446,0.44821203,82.346,82.318,0.47337698]
[1772997893646,0.44821203,82.344,82.319,12.14786379]
[1772997893840,0.44821203,82.344,82.32,0.47337698]
[1772997894024,12.14402817,82.345,82.32,0.47337698]
[1772997894426,12.5922402,82.345,82.32,0.47337698]
[1772997895052,0.44821203,82.344,82.32,0.47337698]
[1772997895740,0.44821203,82.342,82.309,0.47337698]
[1772997898131,42.50513097,82.343,82.311,0.47337698]
[1772997898132,0.44821203,82.34,82.311,0.47337698]
[1772997898732,0.44821203,82.34,82.31,12.14919207]
[1772997900147,0.44821203,82.338,82.309,0.47337698]
[1772997900346,0.44821203,82.329,82.285,12.15283482]
[1772997900546,0.44821203,82.319,82.286,0.47337698]
[1772997901046,0.44821203,82.329,82.286,0.47337698]
[1772997901641,0.44821203,82.337,82.287,0.47337698]
[1772997901849,0.44821203,82.329,82.287,0.47337698]
[1772997902249,0.44821203,82.329,82.125,46.93721731]
[1772997902250,0.44821203,82.327,82.289,0.47337698]
[1772997902439,0.44821203,82.299,82.252,0.47337698]
[1772997902753,42.51287531,82.328,82.252,0.46391225]
[1772997902754,12.14265366,82.28,82.252,0.46391225]
[1772997903055,0.44821203,82.286,82.252,0.46391225]
[1772997903558,0.44821203,82.279,82.241,0.46391225]
[1772997903757,0.28432314,82.308,82.21,0.2]
[1772997903758,0.44821203,82.259,82.21,0.2]
[1772997904053,0.24821203,82.249,82.227,12.16135064]
[1772997904279,0.24821203,82.258,82.218,0.46391225]
[1772997904458,0.24821203,82.258,82.226,12.16154626]
[1772997904758,0.24821203,82.258,82.21,0.2]
[1772997904759,0.24821203,82.249,82.211,0.47589398]
[1772997905947,0.04821203,82.247,82.213,12.65265431]
[1772997907354,0.04821203,82.247,82.214,0.48919481]
[1772997908155,0.04821203,82.247,82.215,12.16323055]
[1772997908551,12.15835035,82.248,82.216,0.48919481]
[1772997909757,12.15764193,82.253,82.216,0.48919481]
[1772997910956,0.04821203,82.258,82.218,0.48919481]
[1772997911152,0.04821203,82.249,82.218,0.48919481]
[1772997912357,60.73369331,82.32,82.21,0.2]
[1772997912358,0.04821203,82.263,82.22,0.48919481]
[1772997912561,0.04821203,82.271,82.22,0.48919481]
[1772997912759,12.14265366,82.27,82.22,0.48919481]
[1772997912935,0.04821203,82.269,82.22,0.48919481]
[1772997914865,0.04821203,82.269,82.222,0.48919481]
[1772997914866,12.15524681,82.269,82.222,0.48919481]
[1772997915061,0.04821203,82.268,82.222,0.48919481]
[1772997916970,0.04821203,82.259,82.224,0.48919481]
[1772997918066,42.54336384,82.269,82.224,0.48919481]
[1772997918067,0.04821203,82.268,82.224,0.48919481]
[1772997918447,42.54336384,82.269,82.224,0.48919481]
[1772997918448,0.04821203,82.259,82.224,0.48919481]
[1772997918757,0.04821203,82.268,82.224,0.48919481]
[1772997919066,0.04821203,82.268,82.21,0.2]
[1772997919067,0.04821203,82.268,82.226,0.48919481]
[1772997920370,12.15524681,82.269,82.226,0.48919481]
[1772997921758,12.15524681,82.269,82.228,0.48919481]
[1772997922763,0.04821203,82.289,82.229,0.48919481]
[1772997923655,0.04821203,82.289,82.228,0.28432314]
[1772997923656,0.04821203,82.289,82.231,0.77351795]
[1772997923976,0.04821203,82.289,82.232,0.48919481]
[1772997924365,0.04821203,82.279,82.232,0.48919481]
[1772997924866,0.04821203,82.269,82.232,0.48919481]
[1772997925779,0.04821203,82.268,82.233,12.64976295]
[1772997926454,0.04821203,82.268,82.234,0.48919481]
[1772997928279,0.04821203,82.268,82.23,30.40252949]
[1772997928280,0.04821203,82.268,82.236,0.48919481]
[1772997929965,0.04821203,82.268,82.235,12.16027239]
[1772997930365,0.04821203,82.268,82.236,0.48919481]
[1772997931666,0.04821203,82.268,82.238,0.48919481]
[1772997933761,0.04821203,82.268,82.23,30.40248076]
[1772997933762,0.04821203,82.268,82.24,0.47589398]
[1772997933962,12.1539172,82.278,82.24,0.47589398]
[1772997934162,12.15314282,82.284,82.241,0.47589398]
[1772997934974,0.04821203,82.283,82.241,0.47589398]
[1772997935383,0.04821203,82.269,82.239,12.15968092]
[1772997936192,12.20345884,82.269,82.239,0.47589398]
[1772997936485,0.04821203,82.268,82.239,0.47589398]
[1772997937485,0.04821203,82.268,82.227,0.47589398]
[1772997938874,0.04821203,82.268,82.229,0.47589398]
[1772997940084,0.04821203,82.259,82.229,0.47589398]
[1772997941808,0.04821203,82.258,82.229,0.47589398]
[1772997941970,0.04821203,82.258,82.23,12.16101179]
[1772997942170,0.04821203,82.258,82.224,0.47589398]
[1772997945275,0.04821203,82.265,82.226,0.47589398]
[1772997947072,4.54152368,82.26,82.226,0.47589398]
[1772997947392,12.15672449,82.259,82.228,0.47589398]
[1772997948088,30.38550858,82.277,82.228,0.47589398]
[1772997948294,0.04821203,82.276,82.228,0.47589398]
[1772997949391,0.04821203,82.276,82.23,0.47589398]
[1772997950594,0.04821203,82.276,82.232,0.47589398]
[1772997950790,12.15376949,82.279,82.233,0.47589398]
[1772997953191,0.04821203,82.285,82.235,0.47589398]
[1772997953390,42.53302384,82.289,82.236,0.47589398]
[1772997953771,12.15229252,82.289,82.236,0.47589398]
[1772997955491,0.04821203,82.299,82.239,0.47589398]
[1772997956185,0.04821203,82.299,82.242,0.47589398]
[1772997957378,0.04821203,82.299,82.245,0.47589398]
[1772997959785,0.04821203,82.299,82.248,0.47589398]